fUST/lending_fUST_20240617
["ID","MTS","AMOUNT","RATE_DAILY","PERIOD"]
[329689089,1718578243064,-500.0,0.00014347,2]
[329689090,1718578243081,-500.0,0.00014347,2]
[329689091,1718578243100,-501.42818865,0.00014347,2]
[329689092,1718578243178,-500.0,0.00014347,2]
[329689093,1718578243209,-208.50340544,0.00014347,2]
[329689094,1718578243228,-500.0,0.00014347,2]
[329689095,1718578243242,-500.0,0.00014347,2]
[329689096,1718578243276,-500.0,0.00014347,2]
[329689097,1718578243302,-500.0,0.00014347,2]
[329689098,1718578243321,-500.0,0.00014347,2]
[329689099,1718578243380,-500.0,0.00014347,2]
[329689100,1718578243410,-500.0,0.00014347,2]
[329689101,1718578243449,-500.0,0.00014347,2]
[329689102,1718578243463,-500.0,0.00014347,2]
[329689103,1718578243510,-1831.69,0.00014347,2]
[329689104,1718578243527,-391.49373107,0.00014347,2]
[329689105,1718578243545,-500.0,0.00014347,2]
[329689106,1718578243572,-500.0,0.00014347,2]
[329689107,1718578243634,-500.0,0.00014347,2]
[329689108,1718578243650,-4846.0,0.00014347,2]
[329689109,1718578243677,-500.0,0.00014347,2]
[329689110,1718578243704,-4445.63,0.00014347,2]
[329689111,1718578243734,-500.0,0.00014347,2]
[329689112,1718578243753,-3784.0,0.00014619,2]
[329689113,1718578243767,-500.0,0.0001462,2]
[329689114,1718578243783,-500.0,0.0001462,2]
[329689115,1718578243800,-500.0,0.0001462,2]
[329689116,1718578243825,-500.0,0.0001462,2]
[329689117,1718578243851,-500.0,0.0001462,2]
[329689118,1718578243878,-500.0,0.0001462,2]
[329689120,1718578243917,-500.0,0.0001462,2]
[329689121,1718578243955,-500.0,0.0001462,2]
[329689122,1718578243980,-500.0,0.0001462,2]
[329689123,1718578243995,-500.0,0.0001462,2]
[329689124,1718578244009,-563.95,0.0001462,2]
[329689125,1718578244026,-500.0,0.0001462,2]
[329689126,1718578244057,-500.0,0.0001462,2]
[329689127,1718578244072,-500.0,0.0001462,2]
[329689128,1718578244106,-500.0,0.0001462,2]
[329689129,1718578244156,-500.0,0.0001462,2]
[329689130,1718578244172,-285.00046671,0.0001462,2]
[329689138,1718578246673,-586.03,0.00014346,2]
[329689140,1718578246703,-7991.48953329,0.0001462,2]
[329689141,1718578246725,-500.0,0.0001462,2]
[329689142,1718578246740,-500.0,0.0001462,2]
[329689143,1718578246768,-1394.93,0.0001462,2]
[329689144,1718578246786,-500.0,0.0001462,2]
[329689145,1718578246842,-500.0,0.0001462,2]
[329689146,1718578246861,-500.0,0.0001462,2]
[329689147,1718578246904,-1754.6,0.0001462,2]
[329689148,1718578246931,-500.0,0.0001462,2]
[329689149,1718578246968,-624.52,0.0001462,2]
[329689150,1718578247002,-507.93,0.0001462,2]
[329689151,1718578247033,-500.0,0.0001462,2]
[329689152,1718578247062,-500.0,0.0001462,2]
[329689153,1718578247080,-500.0,0.0001462,2]
[329689154,1718578247108,-500.0,0.0001462,2]
[329689155,1718578247122,-500.0,0.0001462,2]
[329689156,1718578247184,-500.0,0.0001462,2]
[329689157,1718578247198,-1480.47,0.0001462,2]
[329689158,1718578247257,-500.0,0.0001462,2]
[329689159,1718578247286,-353.79562145,0.0001462,2]
[329689160,1718578247303,-1199.73,0.0001462,2]
[329689161,1718578247318,-500.0,0.0001462,2]
[329689162,1718578247331,-899.76,0.0001462,2]
[329689163,1718578247346,-500.0,0.0001462,2]
[329689164,1718578247371,-500.0,0.0001462,2]
[329689165,1718578247397,-500.0,0.0001462,2]
[329689166,1718578247412,-1415.76,0.0001462,2]
[329689167,1718578247440,-500.0,0.00014621,2]
[329689168,1718578247477,-500.0,0.00014621,2]
[329689169,1718578247497,-500.0,0.00014621,2]
[329689170,1718578247514,-500.0,0.00014621,2]
[329689171,1718578247527,-500.0,0.00014621,2]
[329689172,1718578247538,-500.0,0.00014621,2]
[329689173,1718578247704,-500.0,0.00014621,2]
[329689174,1718578247738,-500.0,0.00014621,2]
[329689175,1718578247755,-1831.69,0.00014621,2]
[329689176,1718578247784,-500.0,0.00014621,2]
[329689177,1718578247801,-162.70632604,0.00014621,2]
[329689178,1718578247813,-4846.0,0.00014621,2]
[329689179,1718578247839,-4445.63,0.00014621,2]
[329689180,1718578247853,-153.0,0.00014736,2]
[329689181,1718578247872,-153.0,0.00014736,2]
[329689182,1718578247900,-153.0,0.00014736,2]
[329689183,1718578247931,-153.0,0.00014736,2]
[329689184,1718578247963,-131.72698907,0.00014736,2]
[329689248,1718579435840,-553.4887,0.00013183,2]
[329689251,1718579435865,-5155.8,0.00013183,2]
[329689261,1718579441539,-356.93879695,0.00013183,2]
[329689262,1718579441573,-3275.85972675,0.00013183,2]
[329689263,1718579441597,-300.0,0.00013698,2]
[329689264,1718579441625,-512.68948771,0.00013699,2]
[329689265,1718579441640,-164.26905229,0.00013699,2]
[329689266,1718579441650,-1284.84852475,0.00014343,2]
[329689267,1718579441667,-5018.76980205,0.00014343,2]
[329689268,1718579441684,-1148.725005,0.00014343,2]
[329689269,1718579441703,-873.3548628,0.00014343,2]
[329689270,1718579441746,-1080.23999965,0.00014343,2]
[329689271,1718579441762,-1648.13502563,0.00014343,2]
[329689318,1718579449815,-2749.78352632,0.00014343,2]
[329689320,1718579449828,-1396.84041904,0.00014344,2]
[329689322,1718579449844,-1094.18813609,0.00014344,2]
[329689324,1718579449990,-5525.75144487,0.00014344,2]
[329689325,1718579450009,-1370.46,0.00014344,2]
[329689326,1718579450027,-1723.73,0.00014344,2]
[329689327,1718579450044,-500.0,0.00014344,2]
[329689328,1718579450056,-500.0,0.00014344,2]
[329689329,1718579450072,-3603.91,0.00014344,2]
[329689330,1718579450082,-1151.5,0.00014344,2]
[329689331,1718579450100,-500.0,0.00014344,2]
[329689332,1718579450112,-500.0,0.00014345,2]
[329689333,1718579450133,-500.0,0.00014345,2]
[329689334,1718579450146,-500.0,0.00014345,2]
[329689335,1718579450157,-500.0,0.00014345,2]
[329689336,1718579450171,-363.04508795,0.00014345,2]
[329689337,1718579450196,-500.0,0.00014345,2]
[329689338,1718579450220,-354.61758719,0.00014345,2]
[329689339,1718579450233,-500.0,0.00014345,2]
[329689340,1718579450265,-500.0,0.00014345,2]
[329689341,1718579450280,-500.0,0.00014345,2]
[329689342,1718579450293,-500.0,0.00014345,2]
[329689343,1718579450307,-500.0,0.00014345,2]
[329689344,1718579450319,-500.0,0.00014345,2]
[329689345,1718579450330,-500.0,0.00014345,2]
[329689346,1718579450341,-500.0,0.00014345,2]
[329689347,1718579450354,-529.73,0.00014345,2]
[329689348,1718579450365,-611.28,0.00014345,2]
[329689349,1718579450379,-500.0,0.00014345,2]
[329689350,1718579450393,-500.0,0.00014345,2]
[329689351,1718579450417,-500.0,0.00014345,2]
[329689352,1718579450428,-382.99,0.00014345,2]
[329689353,1718579450449,-500.0,0.00014345,2]
[329689354,1718579450459,-500.0,0.00014345,2]
[329689355,1718579450470,-500.0,0.00014345,2]
[329689356,1718579450482,-500.0,0.00014345,2]
[329689357,1718579450493,-500.0,0.00014345,2]
[329689358,1718579450505,-500.0,0.00014345,2]
[329689359,1718579450516,-500.0,0.00014345,2]
[329689360,1718579450549,-500.0,0.00014345,2]
[329689361,1718579450561,-507.27,0.00014345,2]
[329689362,1718579450601,-500.0,0.00014345,2]
[329689363,1718579450622,-611.1136572,0.00014345,2]
[329689364,1718579450638,-1442.27,0.00014345,2]
[329689365,1718579450648,-500.0,0.00014345,2]
[329689366,1718579450662,-500.0,0.00014345,2]
[329689367,1718579450686,-500.0,0.00014345,2]
[329689368,1718579450702,-200.21540642,0.00014345,2]
[329689369,1718579450723,-500.0,0.00014345,2]
[329689370,1718579450741,-500.0,0.00014346,2]
[329689371,1718579450756,-358.39101344,0.00014346,2]
[329689372,1718579450785,-500.0,0.00014346,2]
[329689373,1718579450805,-578.67,0.00014618,2]
[329689374,1718579450817,-500.0,0.00014618,2]
[329689375,1718579450829,-500.0,0.00014618,2]
[329689376,1718579450842,-415.75723587,0.00014618,2]
[329689377,1718579450855,-1337.92,0.00014618,2]
[329689378,1718579450866,-1776.01,0.00014618,2]
[329689379,1718579450892,-8016.78,0.00014618,2]
[329689380,1718579450924,-1370.46,0.00014618,2]
[329689381,1718579450937,-500.0,0.00014618,2]
[329689382,1718579450949,-2000.59670136,0.00014618,2]
[329689385,1718579622505,3000.0,0.000225,30]
[329689393,1718580223195,3000.0,0.000225,30]
[329689398,1718580449624,1024.0,0.00023192,60]
[329689468,1718580641520,-300.0,0.00013411,2]
[329689470,1718580641535,-4126.83189203,0.00013412,2]
[329689475,1718580641583,-1867.55795404,0.00013412,2]
[329689813,1718580649497,-1671.33730823,0.00013412,2]
[329689931,1718580652691,-608.09548811,0.00013412,2]
[329689933,1718580652728,-4443.35456349,0.00013412,2]
[329689935,1718580652748,-618.05388043,0.00014244,2]
[329689937,1718580652767,-500.0,0.00014343,2]
[329689939,1718580652778,-500.0,0.00014343,2]
[329689941,1718580652796,-500.0,0.00014343,2]
[329689944,1718580652828,-500.0,0.00014343,2]
[329689946,1718580652853,-500.0,0.00014343,2]
[329689949,1718580652884,-500.0,0.00014343,2]
[329689952,1718580652936,-500.0,0.00014343,2]
[329689953,1718580652962,-500.0,0.00014343,2]
[329689955,1718580652974,-1406.88,0.00014343,2]
[329689957,1718580652984,-500.0,0.00014343,2]
[329689958,1718580653006,-500.0,0.00014344,2]
[329689960,1718580653024,-500.0,0.00014344,2]
[329689963,1718580653051,-500.0,0.00014344,2]
[329689965,1718580653064,-500.0,0.00014344,2]
[329689967,1718580653082,-500.0,0.00014344,2]
[329689969,1718580653093,-500.0,0.00014344,2]
[329689971,1718580653103,-500.0,0.00014344,2]
[329689973,1718580653114,-500.0,0.00014344,2]
[329689975,1718580653132,-500.0,0.00014344,2]
[329689977,1718580653168,-4393.71,0.00014344,2]
[329689978,1718580653184,-500.0,0.00014344,2]
[329689981,1718580653218,-500.0,0.00014344,2]
[329689983,1718580653230,-500.0,0.00014345,2]
[329689985,1718580653247,-500.0,0.00014615,2]
[329689986,1718580653269,-348.11413824,0.00014615,2]
[329690032,1718580822806,3000.0,0.000225,30]
[329690057,1718581392876,500.0,0.000232,59]
[329690058,1718581419478,3000.0,0.000225,30]
[329690112,1718581836165,-641.68355429,0.00014514,2]
[329690113,1718581836196,-300.0,0.00014613,2]
[329690115,1718581836225,-210.32586176,0.00014614,2]
[329690116,1718581836245,-363.8231379,0.00014614,2]
[329690117,1718581836256,-500.0,0.00014614,2]
[329690118,1718581836274,-361.74842265,0.00014614,2]
[329690119,1718581836291,-507.69431826,0.00014614,2]
[329690120,1718581836303,-500.0,0.00014614,2]
[329690121,1718581836329,-500.0,0.00014614,2]
[329690122,1718581836342,-500.0,0.00014614,2]
[329690123,1718581836366,-500.0,0.00014614,2]
[329690124,1718581836377,-500.0,0.00014614,2]
[329690125,1718581836408,-500.0,0.00014614,2]
[329690126,1718581836426,-500.0,0.00014614,2]
[329690127,1718581836437,-500.0,0.00014614,2]
[329690128,1718581836492,-3717.41,0.00014614,2]
[329690129,1718581836510,-500.0,0.00014614,2]
[329690130,1718581836523,-500.0,0.00014614,2]
[329690131,1718581836533,-500.0,0.00014614,2]
[329690132,1718581836543,-7635.19,0.00014614,2]
[329690133,1718581836554,-500.0,0.00014614,2]
[329690134,1718581836565,-500.0,0.00014614,2]
[329690135,1718581836575,-500.0,0.00014614,2]
[329690136,1718581836585,-500.0,0.00014614,2]
[329690137,1718581836604,-500.0,0.00014614,2]
[329690138,1718581836614,-500.0,0.00014614,2]
[329690139,1718581836624,-500.0,0.00014614,2]
[329690140,1718581836635,-1300.92,0.00014614,2]
[329690141,1718581836645,-500.0,0.00014614,2]
[329690142,1718581836660,-506.46,0.00014614,2]
[329690143,1718581836670,-500.0,0.00014614,2]
[329690144,1718581836683,-581.5,0.00014614,2]
[329690145,1718581836711,-1069.07,0.00014614,2]
[329690146,1718581836722,-500.0,0.00014614,2]
[329690147,1718581836732,-609.57,0.00014614,2]
[329690148,1718581836742,-500.0,0.00014614,2]
[329690149,1718581836752,-567.28,0.00014614,2]
[329690150,1718581836770,-500.0,0.00014614,2]
[329690151,1718581836780,-417.72569391,0.00014614,2]
[329690182,1718581842893,-82.27430609,0.00014614,2]
[329690183,1718581842941,-354.57348084,0.00014614,2]
[329690221,1718581847274,-556.62381865,0.00014614,2]
[329696307,1718582022812,3000.0,0.000225,30]
[329696311,1718582631827,3000.0,0.000225,30]
[329696357,1718583047696,-192.081066,0.00013699,2]
[329696358,1718583047720,-325.00599576,0.00013699,2]
[329696370,1718583221382,3000.0,0.000225,30]
[329696371,1718583259688,775.32644998,9.999e-05,2]
[329696372,1718583916070,3000.0,0.000225,30]
[329696377,1718584199115,440.91457592,0.00023,59]
[329696539,1718584242080,-2287.7084137,0.00013699,2]
[329696540,1718584242102,-2101.27459832,0.00013699,2]
[329696541,1718584242113,-656.59867551,0.00014511,2]
[329696542,1718584242124,-382.51787157,0.00014511,2]
[329696543,1718584242137,-1004.15572814,0.00014511,2]
[329696544,1718584242147,-640.22778622,0.00014536,2]
[329696545,1718584242158,-1386.67359967,0.00014583,2]
[329696546,1718584242187,-1983.20300641,0.0001461,2]
[329696547,1718584242206,-926.99388113,0.0001461,2]
[329696548,1718584242218,-7198.40573936,0.0001461,2]
[329696549,1718584242238,-272.38168854,0.0001461,2]
[329696550,1718584242277,-771.83446533,0.0001461,2]
[329696551,1718584242292,-393.4653901,0.0001461,2]
[329696552,1718584242304,-500.0,0.0001461,2]
[329696553,1718584242325,-500.0,0.0001461,2]
[329696554,1718584242337,-500.0,0.0001461,2]
[329696555,1718584242352,-500.0,0.0001461,2]
[329696556,1718584242368,-500.0,0.0001461,2]
[329696557,1718584242403,-500.0,0.0001461,2]
[329696558,1718584242428,-500.0,0.0001461,2]
[329696559,1718584242457,-500.0,0.0001461,2]
[329696560,1718584242482,-519.3,0.0001461,2]
[329696561,1718584242497,-500.0,0.0001461,2]
[329696562,1718584242537,-500.0,0.0001461,2]
[329696563,1718584242561,-1279.86,0.0001461,2]
[329696564,1718584242593,-151.0,0.0001461,2]
[329696565,1718584242604,-151.0,0.0001461,2]
[329696566,1718584242619,-500.0,0.0001461,2]
[329696567,1718584242630,-3859.04,0.0001461,2]
[329696568,1718584242643,-500.0,0.0001461,2]
[329696569,1718584242663,-1444.57547444,0.00014611,2]
[329696570,1718584242676,-187.33268178,0.00014611,2]
[329696571,1718584242686,-281.49904927,0.00014611,2]
[329696572,1718584242697,-196.74458259,0.00014611,2]
[329696573,1718584242731,-155.09577723,0.00014611,2]
[329696574,1718584242755,-500.0,0.00014611,2]
[329696575,1718584242776,-500.0,0.00014611,2]
[329696576,1718584242801,-500.0,0.00014611,2]
[329696577,1718584242817,-233.99007782,0.00014611,2]
[329696578,1718584242833,-500.0,0.00014611,2]
[329696579,1718584242845,-500.0,0.00014611,2]
[329696580,1718584242863,-500.0,0.00014611,2]
[329696581,1718584242883,-508.33945223,0.00014611,2]
[329696582,1718584242921,-500.0,0.00014611,2]
[329696583,1718584242956,-500.0,0.00014611,2]
[329696584,1718584242999,-500.0,0.00014611,2]
[329696585,1718584243010,-500.0,0.00014611,2]
[329696586,1718584243053,-500.0,0.00014611,2]
[329696587,1718584243089,-500.0,0.00014611,2]
[329696588,1718584243100,-268.995985,0.00014611,2]
[329696589,1718584243150,-500.0,0.00014611,2]
[329696590,1718584243163,-151.0,0.00014611,2]
[329696591,1718584243214,-500.0,0.00014611,2]
[329696592,1718584243245,-500.5516669,0.00014611,2]
[329696593,1718584243265,-500.0,0.00014611,2]
[329696594,1718584243313,-500.0,0.00014611,2]
[329696595,1718584243332,-151.0,0.00014611,2]
[329696596,1718584243352,-500.0,0.00014611,2]
[329696597,1718584243372,-500.0,0.00014611,2]
[329696598,1718584243397,-496.35548321,0.00014611,2]
[329696599,1718584243416,-247.73006924,0.00014611,2]
[329696600,1718584243447,-289.16,0.00014611,2]
[329696601,1718584243464,-500.0,0.00014611,2]
[329696602,1718584243475,-151.0,0.00014611,2]
[329696603,1718584243488,-151.0,0.00014611,2]
[329696604,1718584243529,-151.0,0.00014611,2]
[329696605,1718584243540,-151.0,0.00014611,2]
[329696606,1718584243569,-151.0,0.00014611,2]
[329696607,1718584243579,-171.887013,0.00014611,2]
[329696608,1718584243592,-603.47,0.00014611,2]
[329696609,1718584243607,-500.0,0.00014611,2]
[329696610,1718584243628,-151.0,0.00014611,2]
[329696611,1718584243641,-151.0,0.00014611,2]
[329696612,1718584243652,-151.0,0.00014611,2]
[329696613,1718584243664,-163.389518,0.00014611,2]
[329696614,1718584243705,-655.9,0.00014611,2]
[329696615,1718584243728,-337.82586633,0.00014611,2]
[329696616,1718584243749,-162.17413367,0.00014611,2]
[329696617,1718584243776,-500.0,0.00014611,2]
[329696618,1718584243791,-151.0,0.00014611,2]
[329696619,1718584243817,-151.0,0.00014611,2]
[329696620,1718584243830,-645.71883214,0.00014611,2]
[329696621,1718584243843,-151.0,0.00014611,2]
[329696622,1718584243858,-151.0,0.00014611,2]
[329696623,1718584243871,-221.216068,0.00014611,2]
[329696624,1718584243913,-500.0,0.00014611,2]
[329696625,1718584243926,-455.50113388,0.00014611,2]
[329696626,1718584243942,-44.49886612,0.00014611,2]
[329696627,1718584243955,-1275.69,0.00014611,2]
[329696628,1718584243970,-500.0,0.00014611,2]
[329696629,1718584243980,-500.0,0.00014611,2]
[329696630,1718584243993,-500.0,0.00014611,2]
[329696631,1718584244020,-985.05,0.00014611,2]
[329696632,1718584244040,-500.0,0.00014611,2]
[329696633,1718584244052,-500.0,0.00014611,2]
[329696634,1718584244092,-500.0,0.00014611,2]
[329696635,1718584244102,-151.0,0.00014611,2]
[329696636,1718584244114,-151.0,0.00014611,2]
[329696637,1718584244125,-151.0,0.00014611,2]
[329696638,1718584244141,-151.0,0.00014611,2]
[329696639,1718584244164,-151.0,0.00014611,2]
[329696640,1718584244183,-163.094864,0.00014611,2]
[329696641,1718584244193,-500.0,0.00014611,2]
[329696642,1718584244216,-1417.03,0.00014611,2]
[329696643,1718584244230,-500.0,0.00014611,2]
[329696644,1718584244276,-7908.78,0.00014611,2]
[329696645,1718584244289,-583.13,0.00014611,2]
[329696646,1718584244301,-516.51,0.00014611,2]
[329696647,1718584244317,-569.89,0.00014611,2]
[329696648,1718584244329,-522.18,0.00014611,2]
[329696649,1718584244416,-2023.67,0.00014611,2]
[329696650,1718584244430,-500.0,0.00014611,2]
[329696651,1718584244464,-1369.56,0.00014611,2]
[329696652,1718584244496,-656.14,0.00014611,2]
[329696653,1718584244572,-400.27161015,0.00014611,2]
[329696654,1718584244599,-1693.66926269,0.00014611,2]
[329696655,1718584244625,-105.85073731,0.00014611,2]
[329696656,1718584244640,-284.87089557,0.00014611,2]
[329696658,1718584244650,-109.05403528,0.00014611,2]
[329696660,1718584244680,-390.94596472,0.00014611,2]
[329696663,1718584244693,-5379.99,0.00014611,2]
[329696665,1718584244719,-151.0,0.00014611,2]
[329696669,1718584244761,-151.0,0.00014611,2]
[329696671,1718584244777,-151.0,0.00014611,2]
[329696672,1718584244792,-151.0,0.00014611,2]
[329696674,1718584244812,-151.0,0.00014611,2]
[329696676,1718584244823,-151.0,0.00014611,2]
[329696678,1718584244838,-151.0,0.00014611,2]
[329696679,1718584244869,-151.0,0.00014611,2]
[329696681,1718584244881,-151.0,0.00014611,2]
[329696682,1718584244893,-151.0,0.00014611,2]
[329696684,1718584244909,-151.0,0.00014611,2]
[329696686,1718584244921,-193.836966,0.00014611,2]
[329696687,1718584244931,-500.0,0.00014611,2]
[329696688,1718584244960,-500.0,0.00014611,2]
[329696690,1718584244992,-500.0,0.00014611,2]
[329696691,1718584245029,-424.56489109,0.00014611,2]
[329696692,1718584245042,-500.0,0.00014611,2]
[329696693,1718584245059,-500.0,0.00014611,2]
[329696694,1718584245082,-156.8401175,0.00014612,2]
[329696695,1718584245094,-11316.72206058,0.00014612,2]
[329696696,1718584245114,-1161.04534573,0.00014612,2]
[329696697,1718584245150,-26257.35959086,0.00014612,2]
[329696698,1718584245168,-500.0,0.00014612,2]
[329696699,1718584245200,-500.0,0.00014612,2]
[329696700,1718584245212,-500.0,0.00014613,2]
[329696701,1718584245223,-500.0,0.00014613,2]
[329696702,1718584245275,-512.28712344,0.00014613,2]
[329696703,1718584245298,-276.23015115,0.00014613,2]
[329696704,1718584245331,-500.0,0.00014613,2]
[329696705,1718584245343,-630.09128489,0.00014613,2]
[329696706,1718584245386,-501.23,0.00014613,2]
[329696707,1718584245398,-236.09605711,0.00014613,2]
[329696708,1718584245410,-500.0,0.00014613,2]
[329696709,1718584245433,-500.0,0.00014613,2]
[329696710,1718584245454,-392.53894664,0.00014613,2]
[329696712,1718584245467,-500.0,0.00014613,2]
[329696715,1718584245495,-500.0,0.00014613,2]
[329696716,1718584245532,-500.0,0.00014613,2]
[329696718,1718584245546,-500.0,0.00014613,2]
[329696719,1718584245559,-500.0,0.00014613,2]
[329696722,1718584245577,-500.0,0.00014613,2]
[329696724,1718584245602,-535.27,0.00014613,2]
[329696727,1718584245642,-515.67,0.00014613,2]
[329696728,1718584245654,-500.0,0.00014613,2]
[329696730,1718584245669,-645.75503108,0.00014613,2]
[329696731,1718584245721,-500.0,0.00014613,2]
[329696732,1718584245762,-500.0,0.00014613,2]
[329696733,1718584245799,-500.0,0.00014613,2]
[329696734,1718584245815,-4571.68,0.00014613,2]
[329696735,1718584245856,-500.0,0.00014613,2]
[329696736,1718584245868,-1386.67359967,0.00014656,2]
[329696737,1718584245904,-1386.67359967,0.00014728,2]
[329696738,1718584245956,-1386.67359967,0.000148,2]
[329696739,1718584245990,-500.0,0.00014884,2]
[329696740,1718584246002,-500.0,0.00014884,2]
[329696741,1718584246028,-271.84423605,0.00014884,2]
[329696742,1718584246096,-500.0,0.00014884,2]
[329696743,1718584246149,-500.0,0.00014884,2]
[329696744,1718584246183,-500.0,0.00014884,2]
[329696745,1718584246206,-500.0,0.00014884,2]
[329696746,1718584246228,-500.0,0.00014884,2]
[329696747,1718584246257,-519.3,0.00014884,2]
[329696748,1718584246268,-1279.86,0.00014884,2]
[329696749,1718584246288,-2365.57712988,0.00014884,2]
[329696792,1718584247619,-1207.22692602,0.00014884,2]
[329696794,1718584247645,-286.2359441,0.00014884,2]
[329696796,1718584247678,-241.47525123,0.00014884,2]
[329696799,1718584247701,-258.52474877,0.00014884,2]
[329696801,1718584247728,-512.10017474,0.00014885,2]
[329696802,1718584247762,-500.0,0.00014885,2]
[329696804,1718584247776,-500.0,0.00014885,2]
[329696806,1718584247812,-500.0,0.00014885,2]
[329696808,1718584247833,-292.98375161,0.00014885,2]
[329696811,1718584247889,-500.0,0.00014885,2]
[329696813,1718584247911,-500.0,0.00014885,2]
[329696815,1718584247922,-500.0,0.00014885,2]
[329696817,1718584247942,-500.0,0.00014885,2]
[329696820,1718584247988,-500.0,0.00014885,2]
[329696822,1718584248013,-603.47,0.00014885,2]
[329696826,1718584248066,-500.0,0.00014885,2]
[329696827,1718584248092,-655.9,0.00014885,2]
[329696828,1718584248120,-1275.69,0.00014885,2]
[329696830,1718584248133,-672.74412566,0.00014885,2]
[329696852,1718584250132,-312.30587434,0.00014885,2]
[329696853,1718584250144,-500.0,0.00014885,2]
[329696854,1718584250157,-1417.03,0.00014885,2]
[329696856,1718584250178,-755.32081767,0.00014885,2]
[329696858,1718584250193,-7153.45918233,0.00014885,2]
[329696859,1718584250206,-583.13,0.00014885,2]
[329696860,1718584250219,-516.51,0.00014885,2]
[329696861,1718584250244,-569.89,0.00014885,2]
[329696862,1718584250259,-522.18,0.00014885,2]
[329696863,1718584250292,-2023.67,0.00014885,2]
[329696864,1718584250384,-1369.56,0.00014885,2]
[329696865,1718584250403,-656.14,0.00014885,2]
[329696866,1718584250415,-1799.52,0.00014885,2]
[329696867,1718584250472,-5379.99,0.00014885,2]
[329696868,1718584250497,-500.0,0.00014885,2]
[329696869,1718584250521,-500.0,0.00014886,2]
[329696870,1718584250532,-500.0,0.00014886,2]
[329696871,1718584250555,-507.40913013,0.00014887,2]
[329696872,1718584250566,-309.92,0.00014887,2]
[329696873,1718584250577,-500.0,0.00014887,2]
[329696874,1718584250591,-500.0,0.00014887,2]
[329696875,1718584250601,-500.0,0.00014887,2]
[329696876,1718584250612,-500.0,0.00014887,2]
[329696877,1718584250632,-500.0,0.00014887,2]
[329696878,1718584250660,-535.27,0.00014887,2]
[329696879,1718584250675,-515.67,0.00014887,2]
[329696880,1718584250686,-500.0,0.00014887,2]
[329696881,1718584250699,-4571.68,0.00014887,2]
[329696882,1718584250716,-500.0,0.00014887,2]
[329696883,1718584250728,-667.27107727,0.00014892,2]
[329696884,1718584250739,-153.0,0.000149,2]
[329696885,1718584250749,-153.0,0.000149,2]
[329696886,1718584250776,-153.0,0.000149,2]
[329696887,1718584250788,-153.0,0.000149,2]
[329696888,1718584250798,-174.2730109,0.000149,2]
[329696889,1718584250809,-153.0,0.000149,2]
[329696890,1718584250820,-153.0,0.000149,2]
[329696891,1718584250833,-153.0,0.000149,2]
[329696892,1718584250876,-1426.9728866,0.00015,2]
[329696894,1718584250888,-153.0,0.00015,2]
[329696895,1718584250915,-500.0,0.00015158,2]
[329696897,1718584250928,-500.0,0.00015158,2]
[329696898,1718584250958,-500.0,0.00015158,2]
[329696899,1718584250981,-500.0,0.00015158,2]
[329696901,1718584251024,-500.0,0.00015158,2]
[329696904,1718584251059,-500.0,0.00015158,2]